fUST/lending_fUST_20240423
["ID","MTS","AMOUNT","RATE_DAILY","PERIOD"]
[323205020,1713808238637,-500.0,0.00019178,2]
[323205023,1713808238649,-500.0,0.00019178,2]
[323205024,1713808238658,-551.84755329,0.00019178,2]
[323205026,1713808238668,-345.13463697,0.00019178,2]
[323205027,1713808238677,-500.0,0.00019178,2]
[323205028,1713808238686,-361.69196649,0.00019178,2]
[323205029,1713808238696,-500.0,0.00019178,2]
[323205030,1713808238707,-385.46293206,0.00019178,2]
[323205031,1713808238717,-338.59901328,0.00019178,2]
[323205032,1713808238726,-168.464058,0.00019178,2]
[323205033,1713808238736,-434.270853,0.00019225,2]
[323205034,1713808238746,-419.39507495,0.000195,2]
[323205035,1713808238756,-587.0,0.00019771,2]
[323205036,1713808238765,-319.6542586,0.0002,2]
[323205037,1713808238775,-5458.5886175,0.0002,2]
[323205038,1713808238785,-689.33608369,0.0002,2]
[323205039,1713808238795,-241.47273892,0.0002,2]
[323205040,1713808238805,-277.93550668,0.0002,2]
[323205041,1713808238815,-354.73903456,0.0002,2]
[323205042,1713808238824,-677.92303889,0.0002,2]
[323205043,1713808238834,-200.0,0.0002,2]
[323205044,1713808238844,-823.0,0.00021749,2]
[323205045,1713808238854,-1152.0,0.00023923,2]
[323205046,1713808238864,-5000.0,0.000245,2]
[323205047,1713808238874,-417.0,0.000245,2]
[323205048,1713808238884,-44444.0,0.00024509,3]
[323205049,1713808238894,-328.82194226,0.00024608,2]
[323205050,1713808238903,-206.03692384,0.00024608,2]
[323205052,1713808238913,-159.14507717,0.00024608,2]
[323205054,1713808238923,-270.85027,0.00024609,2]
[323205055,1713808238933,-1545.99483131,0.00024609,2]
[323205056,1713808238943,-155.26048682,0.00024609,2]
[323205058,1713808238954,-1489.48629134,0.00024609,2]
[323205059,1713808238967,-400.0,0.0002461,2]
[323205060,1713808238977,-380.0,0.00024658,2]
[323205061,1713808238988,-200.0,0.00024658,2]
[323205062,1713808238997,-179.75198,0.00024832,2]
[323205063,1713808239008,-45043.72929,0.000249,2]
[323205064,1713808239018,-157.23828164,0.00025,2]
[323205065,1713808239027,-152.24651573,0.00025944,2]
[323205066,1713808239039,-692.61042729,0.00026,2]
[323205067,1713808239048,-1613.0,0.00026316,2]
[323205068,1713808239058,-5600.0,0.000265,9]
[323205069,1713808239068,-156.67054002,0.00026867,2]
[323205070,1713808239078,-152.24651573,0.00026948,2]
[323205071,1713808239087,-637.98117757,0.00027,20]
[323205072,1713808239098,-154.82968734,0.00027,2]
[323205073,1713808239108,-158.333333,0.00027397,2]
[323205074,1713808239117,-1000.0,0.00027397,2]
[323205075,1713808239128,-166.666666,0.00027397,2]
[323205076,1713808239137,-801.79803207,0.000275,17]
[323205077,1713808239146,-417.0,0.000275,2]
[323205078,1713808239156,-220.76868482,0.00028,2]
[323205079,1713808239165,-166.666666,0.00028038,2]
[323205080,1713808239175,-166.666666,0.00028679,2]
[323205081,1713808239185,-434.270853,0.00028838,2]
[323205082,1713808239195,-2258.0,0.00028947,2]
[323205083,1713808239207,-1000.0,0.00029,29]
[323205084,1713808239217,-166.666666,0.00029321,2]
[323205085,1713808239227,-166.666666,0.00029962,2]
[323205086,1713808239237,-154.82968734,0.0003,4]
[323205087,1713808239247,-154.82968734,0.0003,4]
[323205088,1713808239256,-320.898431,0.0003,30]
[323205089,1713808239266,-243.72205112,0.0003,30]
[323205090,1713808239277,-253.99433855,0.0003,4]
[323205091,1713808239286,-166.666666,0.0003,2]
[323205092,1713808239297,-259.0,0.0003,2]
[323205093,1713808239306,-166.666666,0.00030603,2]
[323205094,1713808239317,-3100.0,0.00031842,2]
[323205095,1713808239326,-191.40398273,0.00032,4]
[323205096,1713808239338,-158.333333,0.00033844,2]
[323205097,1713808239348,-465.92917544,0.00034,4]
[323205098,1713808239358,-259.0,0.00035,2]
[323205099,1713808239367,-6882.79997042,0.00035,4]
[323205100,1713808239378,-1024.29543692,0.00035,2]
[323205101,1713808239387,-5312.69548551,0.00035,4]
[323205102,1713808239397,-257.26224646,0.00035,4]
[323205103,1713808239407,-208805.94436256,0.00035,30]
[323205104,1713808239417,-203.2688012,0.00035187,2]
[323205105,1713808239427,-3202.867377,0.00035616,120]
[323205106,1713808239437,-27821.12,0.00035616,3]
[323205107,1713808239449,-154.82968734,0.0003589,2]
[323205108,1713808239458,-2924.81959822,0.00037,2]
[323205109,1713808239467,-259.0,0.00038,2]
[323205110,1713808239478,-1000.0,0.00039,39]
[323205111,1713808239488,-1492.7918435,0.0004,7]
[323205112,1713808239498,-201.82400002,0.0004,2]
[323205113,1713808239508,-158.333333,0.0004029,2]
[323205114,1713808239519,-209.48139927,0.00040381,4]
[323205115,1713808239528,-1713.93623245,0.00040381,4]
[323205116,1713808239538,-404.69978516,0.0004039,4]
[323205117,1713808239547,-155.1561478,0.00040392,4]
[323205118,1713808239557,-243.86030291,0.00040395,4]
[323205119,1713808239567,-25072.13180767,0.00040397,4]
[323205120,1713808239578,-150.83408251,0.00041017,2]
[323205121,1713808239588,-3202.867377,0.00041553,120]
[323205122,1713808239598,-282.92215931,0.00042193,4]
[323205123,1713808239607,-241.49433096,0.00042203,4]
[323205124,1713808239617,-3341.530844,0.00042203,4]
[323205125,1713808239627,-220.18651929,0.00042203,4]
[323205126,1713808239638,-1000.0,0.00044,2]
[323205127,1713808239647,-858.0,0.00044412,30]
[323205128,1713808239657,-2690.14344575,0.00045,120]
[323205129,1713808239667,-611985.3522,0.00045,2]
[323205130,1713808239677,-154.82968734,0.000459,4]
[323205131,1713808239686,-3000.94,0.00046316,6]
[323205132,1713808239695,-362.21740336,0.00046616,4]
[323205133,1713808239706,-156.5247691,0.00046617,4]
[323205134,1713808239715,-408.64389017,0.00046617,4]
[323205135,1713808239725,-468.09250976,0.00046617,4]
[323205136,1713808239735,-155.25328064,0.00046617,4]
[323205137,1713808239746,-346.45948439,0.00046617,4]
[323205138,1713808239755,-733.91926517,0.00046617,4]
[323205139,1713808239764,-161.79553901,0.00046617,4]
[323205140,1713808239774,-1546.68780373,0.0004662,4]
[323205141,1713808239783,-158.333333,0.00046736,2]
[323205142,1713808239793,-858.0,0.00046749,30]
[323205143,1713808239802,-6168.0,0.000469,10]
[323205144,1713808239812,-6168.0,0.000469,10]
[323205146,1713808239820,-6168.0,0.000469,10]
[323205149,1713808239830,-1865.43,0.000469,10]
[323205151,1713808239839,-160.0,0.00047,120]
[323205152,1713808239850,-3202.867377,0.00047489,120]
[323205154,1713808239859,-1989.04599205,0.0004788,30]
[323205156,1713808239869,-188.8807094,0.00048,4]
[323205158,1713808239878,-31126.07689079,0.00048,120]
[323205159,1713808239888,-500.0,0.00048,14]
[323205160,1713808239897,-30000.0,0.00048,120]
[323205161,1713808239908,-5786.07112729,0.00049,120]
[323205162,1713808239918,-1000.0,0.00049,49]
[323205164,1713808239927,-858.0,0.0004921,30]
[323205165,1713808239936,-407.90864277,0.00049249,4]
[323205167,1713808239947,-150.0,0.00049614,60]
[323205169,1713808239958,-301.0,0.000497,25]
[323205172,1713808239969,-958.58318348,0.0005,60]
[323205175,1713808239978,-154.84515485,0.0005,30]
[323205177,1713808239987,-8542.25029396,0.0005,120]
[323205179,1713808239996,-1000.0,0.0005,2]
[323205181,1713808240007,-150.0,0.00050614,60]
[323205183,1713808240016,-300.0,0.000507,26]
[323205185,1713808240025,-500.0,0.000507,28]
[323205187,1713808240035,-3000.0,0.00051,85]
[323205189,1713808240045,-3000.0,0.0005101,85]
[323205191,1713808240054,-3000.0,0.0005102,85]
[323205193,1713808240063,-3000.0,0.0005103,85]
[323205195,1713808240073,-3000.0,0.0005104,85]
[323205197,1713808240082,-3000.0,0.0005105,85]
[323205199,1713808240091,-3000.0,0.0005106,85]
[323205201,1713808240100,-5906.861186,0.0005107,85]
[323205204,1713808240109,-154.84515485,0.00051282,4]
[323205206,1713808240119,-166.666666,0.00051397,2]
[323205207,1713808240129,-150.0,0.00051614,60]
[323205208,1713808240139,-300.0,0.000517,27]
[323205209,1713808240148,-1000.0,0.000517,29]
[323205210,1713808240158,-1364.66318969,0.00051778,7]
[323205212,1713808240168,-155.15324954,0.00051788,4]
[323205213,1713808240177,-285.08404166,0.00051798,4]
[323205214,1713808240186,-525.86059543,0.00051798,4]
[323205215,1713808240195,-359.23395887,0.00051799,4]
[323205216,1713808240207,-1092.25703105,0.00051799,4]
[323205217,1713808240216,-3004.49571212,0.00051799,2]
[323205218,1713808240226,-2627.55839025,0.000518,30]
[323205219,1713808240235,-218.56298078,0.000518,4]
[323205220,1713808240245,-200.0,0.000518,2]
[323205221,1713808240254,-16000.6530909,0.000518,30]
[323205222,1713808240263,-1000.0,0.000518,2]
[323205223,1713808240272,-1451.48248425,0.000518,4]
[323205224,1713808240282,-926.23172177,0.000518,4]
[323205225,1713808240291,-154.84515485,0.000518,15]
[323205226,1713808240301,-13364.64570314,0.000518,4]
[323205227,1713808240310,-158.0083576,0.000518,90]
[323205228,1713808240320,-154.82968734,0.000518,4]
[323205229,1713808240329,-155.05003757,0.000518,4]
[323205230,1713808240338,-10000.0,0.000518,55]
[323205232,1713808240348,-858.0,0.000518,30]
[323205234,1713808240356,-150.0,0.000518,30]
[323205236,1713808240365,-1000.0,0.0005185,50]
[323205237,1713808240374,-3097.19276176,0.00051969,30]
[323205239,1713808240384,-3000.0,0.00052,120]
[323205240,1713808240393,-3000.0,0.00052,120]
[323205241,1713808240402,-400.0,0.00052055,30]
[323205242,1713808240411,-5983.00341412,0.00052445,15]
[323205243,1713808240420,-229.0,0.0005247,35]
[323205245,1713808240431,-229.0,0.0005248,35]
[323205246,1713808240441,-229.0,0.0005249,35]
[323205247,1713808240452,-1192.91885187,0.00052493,4]
[323205248,1713808240462,-155.86985187,0.00052496,4]
[323205249,1713808240471,-214.2592401,0.00052496,4]
[323205250,1713808240480,-263.24936645,0.00052496,4]
[323205251,1713808240489,-474.50799204,0.00052496,4]
[323205253,1713808240498,-217.16189107,0.00052496,4]
[323205254,1713808240506,-48846.87879514,0.00052496,4]
[323205255,1713808240516,-309.62844586,0.00052496,4]
[323205256,1713808240525,-154.96228361,0.00052496,4]
[323205257,1713808240534,-156.06083935,0.00052496,4]
[323205258,1713808240544,-155.17601682,0.00052497,4]
[323205259,1713808240552,-716.1202967,0.00052498,4]
[323205260,1713808240561,-33934.87628857,0.00052498,4]
[323205261,1713808240570,-130050.56526098,0.000525,120]
[323205262,1713808240580,-8723.65,0.000526,60]
[323205263,1713808240589,-438.0,0.0005297,35]
[323205264,1713808240599,-438.0,0.0005298,35]
[323205266,1713808240609,-438.0,0.0005299,35]
[323205268,1713808240619,-152368.30390606,0.00053,120]
[323205270,1713808240629,-158.333333,0.00053183,2]
[323205272,1713808240638,-3202.867377,0.00053425,120]
[323205274,1713808240649,-31859.41934185,0.000539,30]
[323205275,1713808240817,-68140.58065815,0.000539,30]
[323205276,1713808240826,-1004.11114375,0.00054,120]
[323205277,1713808240835,-4684.69669918,0.00054,120]
[323205278,1713808240844,-1000.0,0.00054,120]
[323205279,1713808240853,-1727.21817169,0.00054253,2]
[323205280,1713808240863,-858.0,0.0005439,30]
[323205281,1713808240873,-1000.0,0.00054794,120]
[323205282,1713808240883,-1144.52130462,0.00054794,120]
[323205283,1713808240893,-1000.0,0.00054794,120]
[323205284,1713808240903,-500.0,0.00054794,120]
[323205285,1713808240913,-500.0,0.00054794,2]
[323205286,1713808240923,-500.0,0.00054794,120]
[323205287,1713808240932,-500.0,0.00054794,120]
[323205288,1713808240941,-500.0,0.00054794,120]
[323205289,1713808240953,-584.96274854,0.00054794,120]
[323205290,1713808240968,-1000.0,0.00054794,120]
[323205291,1713808240978,-1000.0,0.00054794,120]
[323205292,1713808240987,-913.16896017,0.00054794,120]
[323205293,1713808240996,-500.0,0.00054794,120]
[323205294,1713808241006,-500.0,0.00054794,2]
[323205295,1713808241015,-500.0,0.00054794,120]
[323205296,1713808241025,-500.0,0.00054794,120]
[323205297,1713808241036,-500.0,0.00054794,120]
[323205298,1713808241256,-513.27998913,0.00054794,120]
[323205299,1713808241266,-602.18389481,0.00054794,120]
[323205300,1713808241277,-551.94,0.00054794,120]
[323205301,1713808241288,-500.0,0.00054794,120]
[323205302,1713808241298,-500.0,0.00054794,120]
[323205303,1713808241309,-500.0,0.00054794,120]
[323205304,1713808241319,-506.04927583,0.00054794,120]
[323205305,1713808241329,-501.51456025,0.00054794,120]
[323205306,1713808241340,-500.0,0.00054794,120]
[323205307,1713808241349,-828.0075,0.00054794,120]
[323205308,1713808241358,-500.0,0.00054794,120]
[323205309,1713808241367,-504.04675046,0.00054794,120]
[323205310,1713808241376,-505.94,0.00054794,120]
[323205311,1713808241384,-500.0,0.00054794,120]
[323205312,1713808241393,-795.52,0.00054794,120]
[323205313,1713808241402,-304.45487242,0.00054794,120]
[323205314,1713808241411,-535.83,0.00054794,120]
[323205315,1713808241420,-500.0,0.00054794,120]
[323205316,1713808241430,-500.0,0.00054794,120]
[323205317,1713808241440,-1147.22,0.00054794,120]
[323205318,1713808241451,-500.0,0.00054794,120]
[323205319,1713808241460,-500.0,0.00054794,120]
[323205320,1713808241469,-190.40238432,0.00054794,120]
[323205321,1713808241478,-500.0,0.00054794,120]
[323205322,1713808241489,-817.55,0.00054794,120]
[323205323,1713808241499,-500.0,0.00054794,120]
[323205324,1713808241509,-457.07668833,0.00054794,120]
[323205325,1713808241520,-500.0,0.00054794,120]
[323205326,1713808241529,-500.0,0.00054794,120]
[323205327,1713808241539,-730.24,0.00054794,120]
[323205328,1713808241549,-500.0,0.00054794,120]
[323205329,1713808241559,-2095.76,0.00054794,120]
[323205330,1713808241568,-500.0,0.00054794,120]
[323205331,1713808241578,-500.0,0.00054794,120]
[323205332,1713808241589,-763.71,0.00054794,120]
[323205333,1713808241598,-500.0,0.00054794,120]
[323205334,1713808241610,-500.0,0.00054794,120]
[323205335,1713808241620,-510.78087478,0.00054794,120]
[323205336,1713808241630,-500.0,0.00054794,120]
[323205337,1713808241640,-500.0,0.00054794,120]
[323205338,1713808241650,-872.75015589,0.00054795,120]
[323205339,1713808241660,-872.75015589,0.00054795,120]
[323205340,1713808241670,-872.75015589,0.00054795,120]
[323205341,1713808241681,-872.75015589,0.00054795,120]
[323205342,1713808241691,-872.75015589,0.00054795,120]
[323205343,1713808241704,-872.75015589,0.00054795,120]
[323205344,1713808241713,-872.75015589,0.00054795,120]
[323205345,1713808241723,-872.75015589,0.00054795,120]
[323205346,1713808241734,-872.75015589,0.00054795,120]
[323205347,1713808241744,-872.75015589,0.00054795,120]
[323205348,1713808241754,-872.75015589,0.00054795,120]
[323205349,1713808241764,-872.75015589,0.00054795,120]
[323205350,1713808241774,-872.75015589,0.00054795,120]
[323205351,1713808241784,-872.75015589,0.00054795,120]
[323205352,1713808241794,-872.75015589,0.00054795,120]
[323205353,1713808241803,-872.75015589,0.00054795,120]
[323205354,1713808241812,-872.75015589,0.00054795,120]
[323205355,1713808241822,-872.75015589,0.00054795,120]
[323205356,1713808241831,-872.75015589,0.00054795,120]
[323205357,1713808241842,-873.25,0.00054795,120]
[323205358,1713808241851,-3491.07562356,0.00054795,120]
[323205359,1713808241861,-3491.07562356,0.00054795,120]
[323205360,1713808241871,-2117.99869185,0.00054795,120]
[323205361,1713808241978,-290.53383177,0.00054795,120]
[323205383,1713808243516,-1082.54309994,0.00054795,120]
[323205385,1713808243525,-3491.07562356,0.00054795,120]
[323205386,1713808243535,-3491.07562356,0.00054795,120]
[323205387,1713808243545,-936.03718306,0.00054795,120]
[323205388,1713808243569,-2555.0384405,0.00054795,120]
[323205389,1713808243579,-2290.93472664,0.00054795,120]
[323205471,1713809432664,-1550.48057045,0.00015875,2]
[323205472,1713809432674,-1490.03151355,0.00015876,2]
[323205473,1713809432683,-161.99063186,0.00015876,2]
[323205474,1713809432692,-539.74228579,0.00015877,2]
[323205475,1713809432701,-154.82968734,0.00015877,2]
[323205476,1713809432710,-154.82968734,0.00015877,2]
[323205477,1713809432719,-883.60999796,0.00015877,2]
[323205478,1713809432728,-5800.54488045,0.00015877,2]
[323205479,1713809432737,-1090.29216409,0.00015878,2]
[323205480,1713809432746,-596.73090927,0.00015878,2]
[323205481,1713809432755,-154.82968734,0.00015878,2]
[323205482,1713809432765,-600.00574382,0.00015878,2]
[323205483,1713809432774,-43657.97617374,0.00015878,2]
[323205484,1713809432785,-15490.35066594,0.00015878,2]
[323205485,1713809432793,-173.19355555,0.00015879,2]
[323205486,1713809432803,-154.82968734,0.00015879,2]
[323205487,1713809432813,-7865.45010346,0.00015879,2]
[323205488,1713809432824,-471.74403626,0.0001588,2]
[323205489,1713809432834,-549.48258406,0.0001588,2]
[323205490,1713809432845,-203.80378127,0.0001588,2]
[323205493,1713809432856,-154.82968734,0.00015881,2]
[323205494,1713809432866,-154.82968734,0.00015881,2]
[323205496,1713809432877,-2623.48627296,0.00015881,2]
[323205498,1713809432887,-300.0,0.00015881,2]
[323205500,1713809432898,-300.0,0.00015881,2]
[323205503,1713809432909,-564.41327959,0.00015882,2]
[323205504,1713809432919,-701.81456509,0.00015882,2]
[323205506,1713809432930,-154.82968734,0.00015883,2]
[323205508,1713809432939,-31291.27918784,0.00015883,2]
[323205510,1713809432950,-409962.83882736,0.00015883,2]
[323205511,1713809432961,-468.35619814,0.00015884,2]
[323205513,1713809432972,-349.745327,0.00015888,2]
[323205515,1713809432981,-272.52388449,0.000165,2]
[323205517,1713809432993,-6927.33456335,0.0001689,2]
[323205519,1713809433003,-155.45264823,0.00016896,2]
[323205521,1713809433013,-942.33615759,0.00016897,2]
[323205523,1713809433023,-155.4526482,0.00016897,2]
[323205526,1713809433033,-155.4526482,0.00016898,2]
[323205528,1713809433042,-942.33615756,0.00016898,2]
[323205530,1713809433053,-155.4526482,0.00016899,2]
[323205531,1713809433062,-942.33615756,0.000169,2]
[323205534,1713809433072,-155.4526482,0.000169,2]
[323205535,1713809433083,-942.33615756,0.00016901,2]
[323205537,1713809433092,-155.4526482,0.00016901,2]
[323205539,1713809433102,-942.33615756,0.00016902,2]
[323205540,1713809433111,-155.4526482,0.00016903,2]
[323205541,1713809433121,-155.4526482,0.00016904,2]
[323205542,1713809433131,-155.4526482,0.00016905,2]
[323205543,1713809433140,-155.4526482,0.00016906,2]
[323205544,1713809433150,-155.4526482,0.00016907,2]
[323205545,1713809433159,-155.4526482,0.00016908,2]
[323205546,1713809433168,-1381.94176081,0.00017003,2]
[323205547,1713809433179,-1826.99758896,0.00017009,2]
[323205548,1713809433189,-1397.28244877,0.00017021,2]
[323205549,1713809433200,-11218.0303862,0.00017027,2]
[323205550,1713809433209,-420.0,0.00017365,2]
[323205551,1713809433218,-420.0,0.00017469,2]
[323205552,1713809433227,-587.0,0.00018988,2]
[323205553,1713809433236,-1545.99483131,0.00019149,2]
[323205554,1713809433245,-155.26048682,0.00019149,2]
[323205555,1713809433254,-328.82194226,0.00019149,2]
[323205556,1713809433263,-206.03692384,0.00019149,2]
[323205557,1713809433273,-270.85027,0.00019149,2]
[323205558,1713809433289,-220.18651929,0.00019158,2]
[323205559,1713809433299,-241.49433096,0.00019158,2]
[323205560,1713809433308,-243.86030291,0.00019158,2]
[323205561,1713809433318,-155.1561478,0.00019158,2]
[323205562,1713809433327,-282.92215931,0.00019158,2]
[323205563,1713809433336,-209.48139927,0.00019158,2]
[323205564,1713809433346,-156.5247691,0.00019166,2]
[323205565,1713809433358,-161.79553901,0.00019166,2]
[323205566,1713809433368,-408.64389017,0.00019166,2]
[323205567,1713809433378,-362.21740336,0.00019166,2]
[323205568,1713809433388,-155.25328064,0.00019166,2]
[323205569,1713809433397,-500.0,0.00019178,2]
[323205570,1713809433406,-500.0,0.00019178,2]
[323205571,1713809433415,-242.9225362,0.00019178,2]
[323205572,1713809433425,-269.23704695,0.00019178,2]
[323205573,1713809433435,-359.6453247,0.00019178,2]
[323205574,1713809433445,-432.80935928,0.00019178,2]
[323205575,1713809433454,-364.01362361,0.00019178,2]
[323205576,1713809433583,-318.39537265,0.00019178,2]
[323205577,1713809433593,-179.75198,0.00019178,2]
[323205578,1713809433604,-587.0,0.00019215,2]
[323205579,1713809433613,-44444.0,0.000199,2]
[323205580,1713809433623,-3340.84769894,0.0002,2]
[323205581,1713809433633,-4991.1602258,0.0002,2]
[323205582,1713809433643,-677.92303889,0.0002,2]
[323205583,1713809433653,-319.6542586,0.0002,2]
[323205584,1713809433662,-277.93550668,0.0002,2]
[323205585,1713809433671,-689.33608369,0.0002,2]
[323205586,1713809433681,-80000.0,0.0002,2]
[323205587,1713809433690,-400.0,0.0002,2]
[323205588,1713809433699,-1545.9306108,0.00020542,2]
[323205589,1713809433708,-823.0,0.00020763,2]
[323205590,1713809433718,-7923.63328793,0.00021,2]
[323205591,1713809433727,-3343.56869544,0.00021,2]
[323205592,1713809433736,-823.0,0.00021137,2]
[323205593,1713809433745,-924.459359,0.00021677,2]
[323205594,1713809433755,-825.503656,0.00021677,2]
[323205595,1713809433764,-167.234892,0.00021677,2]
[323205596,1713809433773,-1646.605586,0.00021677,2]
[323205597,1713809433783,-1843.697726,0.00021677,2]
[323205598,1713809433792,-1843.697725,0.00021677,2]
[323205599,1713809433801,-1646.605586,0.00021677,2]
[323205600,1713809433810,-250.306688,0.00021677,2]
[323205601,1713809433819,-160.309071,0.00021677,2]
[323205602,1713809433828,-19637.08068128,0.000219,2]
[323205603,1713809433838,-407.90864277,0.00021945,2]
[323205604,1713809433846,-924.459359,0.00021948,2]
[323205605,1713809433855,-825.503656,0.00021948,2]
[323205606,1713809433866,-1646.605586,0.00021948,2]
[323205607,1713809433876,-1843.697726,0.00021948,2]
[323205608,1713809433885,-1843.697725,0.00021948,2]
[323205609,1713809433894,-1646.605586,0.00021948,2]
[323205610,1713809433903,-159.0267976,0.00022,2]
[323205611,1713809433913,-924.459359,0.00022219,2]
[323205612,1713809433923,-825.503656,0.00022219,2]
[323205613,1713809433933,-1646.605586,0.00022219,2]
[323205614,1713809433942,-1843.697726,0.00022219,2]
[323205615,1713809433951,-1843.697725,0.00022219,2]
[323205616,1713809433960,-1646.605586,0.00022219,2]
[323205617,1713809433969,-924.459359,0.0002249,2]
[323205618,1713809433978,-825.503656,0.0002249,2]
[323205619,1713809433987,-1646.605586,0.0002249,2]
[323205620,1713809433996,-1843.697726,0.0002249,2]
[323205621,1713809434005,-1843.697725,0.0002249,2]
[323205622,1713809434014,-1646.605586,0.0002249,2]
[323205623,1713809434024,-300.0,0.00022703,2]
[323205624,1713809434033,-825.503656,0.00022761,2]
[323205625,1713809434042,-924.459359,0.00022761,2]
[323205626,1713809434051,-167.234892,0.00022761,2]
[323205627,1713809434060,-1646.605586,0.00022761,2]
[323205628,1713809434069,-1843.697726,0.00022761,2]
[323205629,1713809434078,-1843.697725,0.00022761,2]
[323205630,1713809434087,-1646.605586,0.00022761,2]
[323205631,1713809434096,-1115.24390317,0.00023117,2]
[323205632,1713809434106,-1152.0,0.00023251,2]
[323205633,1713809434115,-349.745327,0.00023831,2]
[323205634,1713809434126,-644.76219516,0.00024273,2]
[323205635,1713809434134,-5000.0,0.000245,2]
[323205636,1713809434144,-217.16189107,0.00024598,2]
[323205637,1713809434154,-309.62844586,0.00024598,2]
[323205638,1713809434163,-1364.66318969,0.00024598,7]
[323205639,1713809434172,-154.96228361,0.00024599,2]
[323205640,1713809434182,-474.50799204,0.00024599,2]
[323205641,1713809434191,-525.86059543,0.00024599,2]
[323205642,1713809434200,-214.2592401,0.00024599,2]
[323205643,1713809434209,-155.86985187,0.00024599,2]
[323205644,1713809434218,-58138.27024887,0.000246,2]
[323205728,1713809438638,-3386.57760262,0.000246,2]
[323205730,1713809438648,-380.0,0.00024658,2]
[323205732,1713809438657,-200.0,0.00024658,2]
[323205734,1713809438666,-417.314,0.00024804,2]
[323205736,1713809438675,-4504.372929,0.000249,2]
[323205738,1713809438684,-4504.372929,0.000249,2]
[323205740,1713809438694,-2566.72548695,0.000249,2]
[323205742,1713809438707,-983.32619099,0.000249,2]
[323205744,1713809438719,-954.32125106,0.000249,2]
[323205746,1713809438728,-4504.372929,0.000249,2]
[323205748,1713809438737,-4504.372929,0.000249,2]
[323205750,1713809438746,-4504.372929,0.000249,2]
[323205752,1713809438755,-4504.372929,0.000249,2]
[323205754,1713809438765,-4504.372929,0.000249,2]
[323205756,1713809438774,-4504.372929,0.000249,2]
[323205758,1713809438783,-4504.372929,0.000249,2]
[323205759,1713809438793,-157.23828164,0.00025,2]
[323205762,1713809438802,-621.23810976,0.00025486,2]
[323205763,1713809438812,-1613.0,0.00025576,2]
[323205765,1713809438821,-692.61042729,0.00026,2]
[323205767,1713809438831,-156.67054002,0.00026107,2]
[323205769,1713809438840,-152.24651573,0.00026142,2]
[323205771,1713809438849,-5600.0,0.000265,9]
[323205773,1713809438858,-620.06190549,0.00026761,2]
[323205775,1713809438867,-637.98117757,0.00027,20]
[323205777,1713809438878,-159.94880245,0.00027,2]
[323205779,1713809438887,-150.0,0.0002732,2]
[323205781,1713809438897,-2097.87,0.00027397,2]
[323205783,1713809438905,-500.0,0.00027397,2]
[323205785,1713809438914,-500.0,0.00027397,2]
[323205787,1713809438924,-500.0,0.00027397,2]
[323205789,1713809438934,-500.0,0.00027397,2]
[323205791,1713809438943,-500.0,0.00027397,2]
[323205793,1713809438952,-452.73172012,0.00027397,2]
[323205795,1713809438962,-500.0,0.00027397,2]
[323205797,1713809438970,-500.0,0.00027397,2]
[323205799,1713809438979,-500.0,0.00027397,2]
[323205801,1713809438988,-500.0,0.00027397,2]
[323205803,1713809438997,-500.0,0.00027397,2]
[323205805,1713809439007,-158.333334,0.00027397,2]
[323205806,1713809439016,-166.666666,0.00027397,2]
[323205808,1713809439026,-478.125,0.00027397,2]
[323205810,1713809439036,-9193.643966,0.00027397,2]
[323205812,1713809439045,-1000.0,0.00027397,2]
[323205814,1713809439054,-801.79803207,0.000275,17]
[323205816,1713809439063,-5069.18649035,0.000275,2]
[323205818,1713809439072,-152.24651573,0.00027614,2]
[323205820,1713809439081,-162254.37157847,0.0002763,2]
[323205822,1713809439091,-417.0,0.00027804,2]
[323205824,1713809439100,-423.74027797,0.00028,2]